fUST/lending_fUST_20240824
["ID","MTS","AMOUNT","RATE_DAILY","PERIOD"]
[335756101,1724478652721,-500.0,0.00013972,2]
[335756102,1724478652731,-500.0,0.00013972,2]
[335756103,1724478652741,-500.0,0.00013972,2]
[335756104,1724478652751,-966.95,0.00013972,2]
[335756105,1724478652762,-500.0,0.00013972,2]
[335756106,1724478652772,-500.0,0.00013972,2]
[335756107,1724478652782,-268.195579,0.00013972,2]
[335756108,1724478652791,-729.16,0.00013972,2]
[335756109,1724478652801,-151.0,0.00013972,2]
[335756110,1724478652811,-151.0,0.00013972,2]
[335756111,1724478652822,-500.0,0.00013972,2]
[335756112,1724478652832,-268.195579,0.00013972,2]
[335756113,1724478652841,-500.0,0.00013972,2]
[335756114,1724478652851,-520.91,0.00013972,2]
[335756115,1724478652861,-151.0,0.00013972,2]
[335756116,1724478652871,-10521.99,0.00013972,2]
[335756117,1724478652885,-528.43,0.00013972,2]
[335756118,1724478652896,-864.08,0.00013972,2]
[335756119,1724478652905,-2390.43,0.00013972,2]
[335756121,1724478652915,-500.0,0.00013972,2]
[335756122,1724478652926,-500.0,0.00013972,2]
[335756123,1724478652937,-2873.741437,0.00013972,2]
[335756124,1724478652946,-954.27,0.00013972,2]
[335756126,1724478652957,-500.0,0.00013972,2]
[335756127,1724478652967,-500.0,0.00013972,2]
[335756128,1724478652976,-500.0,0.00013972,2]
[335756129,1724478652985,-500.83769805,0.00013972,2]
[335756130,1724478652996,-21000.36,0.00013972,2]
[335756131,1724478653006,-2873.741437,0.00013972,2]
[335756132,1724478653017,-745.68,0.00013972,2]
[335756133,1724478653028,-582.85,0.00013972,2]
[335756134,1724478653037,-500.0,0.00013972,2]
[335756135,1724478653047,-1396.82,0.00013972,2]
[335756136,1724478653057,-764.94,0.00013972,2]
[335756137,1724478653067,-500.0,0.00013972,2]
[335756138,1724478653078,-532.59,0.00013972,2]
[335756139,1724478653088,-658.87,0.00013972,2]
[335756140,1724478653098,-500.0,0.00013972,2]
[335756141,1724478653109,-2214.52629,0.00013972,2]
[335756142,1724478653119,-500.0,0.00013972,2]
[335756143,1724478653129,-992.94,0.00013972,2]
[335756144,1724478653138,-500.0,0.00013972,2]
[335756145,1724478653148,-4734.16,0.00013972,2]
[335756146,1724478653159,-2214.52629,0.00013972,2]
[335756147,1724478653168,-622.28278891,0.00013972,2]
[335756148,1724478653178,-1057.22,0.00013972,2]
[335756149,1724478653189,-500.0,0.00013972,2]
[335756150,1724478653198,-500.0,0.00013972,2]
[335756151,1724478653218,-901.14,0.00013972,2]
[335756152,1724478653227,-1440.3,0.00013972,2]
[335756153,1724478653237,-815.84,0.00013972,2]
[335756154,1724478653246,-500.0,0.00013972,2]
[335756155,1724478653255,-500.0,0.00013972,2]
[335756156,1724478653264,-500.0,0.00013972,2]
[335756158,1724478653275,-1500.44,0.00013972,2]
[335756159,1724478653285,-5324.9,0.00013972,2]
[335756160,1724478653294,-535.73,0.00013972,2]
[335756162,1724478653305,-437.130283,0.00013972,2]
[335756163,1724478653315,-2519.0,0.00013972,2]
[335756164,1724478653325,-1911.86,0.00013972,2]
[335756165,1724478653336,-704.07,0.00013972,2]
[335756166,1724478653347,-3302.61,0.00013972,2]
[335756167,1724478653358,-500.0,0.00013972,2]
[335756168,1724478653368,-437.130283,0.00013972,2]
[335756169,1724478653377,-542.64,0.00013972,2]
[335756170,1724478653386,-500.0,0.00013972,2]
[335756171,1724478653396,-1064.86,0.00013972,2]
[335756172,1724478653406,-500.0,0.00013972,2]
[335756173,1724478653416,-500.0,0.00013972,2]
[335756174,1724478653425,-553.58,0.00013972,2]
[335756175,1724478653435,-1882.3,0.00013972,2]
[335756176,1724478653444,-500.0,0.00013972,2]
[335756177,1724478653454,-2876.0,0.00013972,2]
[335756178,1724478653464,-500.0,0.00013972,2]
[335756179,1724478653473,-151.0,0.00013972,2]
[335756180,1724478653483,-500.0,0.00013972,2]
[335756181,1724478653493,-500.0,0.00013972,2]
[335756182,1724478653503,-500.0,0.00013972,2]
[335756183,1724478653512,-500.0,0.00013972,2]
[335756185,1724478653522,-600.1766045,0.00013972,2]
[335756186,1724478653531,-610.03,0.00013972,2]
[335756187,1724478653541,-151.0,0.00013972,2]
[335756189,1724478653550,-500.0,0.00013972,2]
[335756190,1724478653560,-661.51,0.00013972,2]
[335756191,1724478653569,-822.14,0.00013972,2]
[335756193,1724478653579,-10332.39,0.00013972,2]
[335756194,1724478653588,-1051.86,0.00013972,2]
[335756195,1724478653598,-2017.2,0.00013972,2]
[335756196,1724478653607,-500.0,0.00013972,2]
[335756197,1724478653617,-151.0,0.00013972,2]
[335756198,1724478653627,-516.03,0.00013972,2]
[335756199,1724478653638,-570.15578,0.00013972,2]
[335756200,1724478653649,-1204.24,0.00013972,2]
[335756201,1724478653660,-151.0,0.00013972,2]
[335756202,1724478653670,-500.0,0.00013972,2]
[335756203,1724478653679,-638.86110695,0.00013972,2]
[335756204,1724478653689,-570.15578,0.00013972,2]
[335756205,1724478653698,-1306.95,0.00013972,2]
[335756206,1724478653713,-502.80770352,0.00013972,2]
[335756207,1724478653722,-3369.82,0.00013972,2]
[335756208,1724478653733,-4861.42,0.00013972,2]
[335756209,1724478653742,-2171.05,0.00013972,2]
[335756210,1724478653752,-500.0,0.00013972,2]
[335756211,1724478653763,-500.0,0.00013972,2]
[335756213,1724478653772,-1351.34,0.00013972,2]
[335756214,1724478653781,-732.89,0.00013972,2]
[335756215,1724478653792,-3113.003741,0.00013972,2]
[335756217,1724478653801,-500.0,0.00013972,2]
[335756218,1724478653810,-871.43,0.00013972,2]
[335756219,1724478653821,-13489.51,0.00013972,2]
[335756220,1724478653831,-500.0,0.00013972,2]
[335756222,1724478653842,-597.27,0.00013972,2]
[335756223,1724478653853,-500.0,0.00013972,2]
[335756224,1724478653863,-20458.98,0.00013972,2]
[335756225,1724478653875,-692.72,0.00013972,2]
[335756226,1724478653885,-3113.003741,0.00013972,2]
[335756227,1724478653895,-741.25,0.00013972,2]
[335756228,1724478653905,-477.87957375,0.00013972,2]
[335756239,1724478655219,-690.73486634,0.00013698,2]
[335756240,1724478655367,-158.84513366,0.00013698,2]
[335756241,1724478655377,-507.97,0.00013698,2]
[335756242,1724478655387,-507.97,0.00013698,2]
[335756243,1724478655397,-500.0,0.00013698,2]
[335756244,1724478655407,-507.97,0.00013698,2]
[335756246,1724478655417,-507.97,0.00013698,2]
[335756247,1724478655426,-507.97,0.00013698,2]
[335756248,1724478655437,-507.97,0.00013698,2]
[335756250,1724478655447,-500.0,0.00013698,2]
[335756251,1724478655459,-22.12042625,0.00013972,2]
[335756252,1724478655469,-770.534569,0.00013972,2]
[335756253,1724478655478,-500.0,0.00013972,2]
[335756254,1724478655488,-500.0,0.00013972,2]
[335756255,1724478655497,-2254.77,0.00013972,2]
[335756256,1724478655506,-500.0,0.00013972,2]
[335756257,1724478655515,-500.0,0.00013972,2]
[335756258,1724478655525,-770.534569,0.00013972,2]
[335756259,1724478655535,-500.0,0.00013972,2]
[335756260,1724478655545,-646.93,0.00013972,2]
[335756261,1724478655554,-500.0,0.00013972,2]
[335756262,1724478655564,-500.0,0.00013972,2]
[335756263,1724478655573,-2078.99,0.00013972,2]
[335756264,1724478655582,-500.0,0.00013972,2]
[335756265,1724478655592,-554.91,0.00013972,2]
[335756266,1724478655601,-500.0,0.00013972,2]
[335756267,1724478655612,-3007.15,0.00013972,2]
[335756268,1724478655623,-500.0,0.00013972,2]
[335756269,1724478655632,-832.7,0.00013972,2]
[335756270,1724478655642,-2157.62,0.00013972,2]
[335756271,1724478655653,-500.0,0.00013972,2]
[335756272,1724478655665,-2621.18,0.00013972,2]
[335756273,1724478655675,-10164.51,0.00013972,2]
[335756274,1724478655684,-1710.98,0.00013972,2]
[335756275,1724478655694,-500.0,0.00013972,2]
[335756276,1724478655706,-500.0,0.00013972,2]
[335756277,1724478655715,-2220.17,0.00013972,2]
[335756279,1724478655724,-1628.29,0.00013972,2]
[335756280,1724478655733,-500.0,0.00013972,2]
[335756281,1724478655743,-500.0,0.00013972,2]
[335756282,1724478655754,-502.7374095,0.00013972,2]
[335756283,1724478655764,-2320.51,0.00013972,2]
[335756284,1724478655774,-500.0,0.00013972,2]
[335756286,1724478655783,-500.0,0.00013972,2]
[335756287,1724478655793,-151.0,0.00013972,2]
[335756288,1724478655803,-1437.69,0.00013972,2]
[335756289,1724478655815,-717.61,0.00013972,2]
[335756290,1724478655824,-500.0,0.00013972,2]
[335756291,1724478655835,-826.82,0.00013972,2]
[335756292,1724478655845,-500.0,0.00013972,2]
[335756293,1724478655857,-1919.9,0.00013972,2]
[335756294,1724478655867,-500.0,0.00013972,2]
[335756295,1724478655881,-500.0,0.00013972,2]
[335756296,1724478655890,-500.0,0.00013972,2]
[335756297,1724478655900,-500.0,0.00013972,2]
[335756298,1724478655912,-500.0,0.00013972,2]
[335756299,1724478655923,-990.99,0.00013972,2]
[335756300,1724478655933,-500.0,0.00013972,2]
[335756301,1724478655943,-1932.1,0.00013972,2]
[335756302,1724478655955,-202.319256,0.00013972,2]
[335756303,1724478655966,-151.0,0.00013972,2]
[335756304,1724478655975,-500.0,0.00013972,2]
[335756305,1724478655987,-1984.97,0.00013972,2]
[335756307,1724478655996,-1767.46,0.00013972,2]
[335756308,1724478656007,-500.0,0.00013972,2]
[335756309,1724478656017,-500.0,0.00013972,2]
[335756310,1724478656027,-11909.39,0.00013972,2]
[335756311,1724478656037,-500.0,0.00013972,2]
[335756312,1724478656047,-202.319256,0.00013972,2]
[335756313,1724478656058,-500.0,0.00013972,2]
[335756314,1724478656068,-500.0,0.00013972,2]
[335756315,1724478656079,-500.0,0.00013972,2]
[335756316,1724478656090,-654.88,0.00013972,2]
[335756317,1724478656102,-987.1,0.00013972,2]
[335756318,1724478656114,-1036.31,0.00013972,2]
[335756319,1724478656124,-500.0,0.00013972,2]
[335756320,1724478656134,-4611.35,0.00013972,2]
[335756321,1724478656146,-1896.83,0.00013972,2]
[335756322,1724478656158,-500.0,0.00013972,2]
[335756324,1724478656167,-500.0,0.00013972,2]
[335756325,1724478656177,-680.96,0.00013972,2]
[335756326,1724478656186,-1644.94,0.00013972,2]
[335756327,1724478656197,-663.31,0.00013972,2]
[335756328,1724478656207,-500.0,0.00013972,2]
[335756329,1724478656217,-500.0,0.00013972,2]
[335756330,1724478656226,-532.07,0.00013972,2]
[335756331,1724478656236,-500.0,0.00013972,2]
[335756332,1724478656246,-626.08,0.00013972,2]
[335756333,1724478656255,-824.05,0.00013972,2]
[335756334,1724478656264,-981.08,0.00013972,2]
[335756335,1724478656276,-3421.37,0.00013972,2]
[335756336,1724478656287,-745.05,0.00013972,2]
[335756338,1724478656298,-198.340055,0.00013972,2]
[335756339,1724478656309,-1342.09,0.00013972,2]
[335756340,1724478656320,-6223.08,0.00013972,2]
[335756342,1724478656330,-519.67,0.00013972,2]
[335756343,1724478656341,-500.0,0.00013972,2]
[335756344,1724478656352,-198.340055,0.00013972,2]
[335756345,1724478656362,-1303.58,0.00013972,2]
[335756346,1724478656373,-500.0,0.00013972,2]
[335756347,1724478656383,-500.0,0.00013972,2]
[335756348,1724478656393,-3698.2,0.00013972,2]
[335756349,1724478656404,-500.0,0.00013972,2]
[335756350,1724478656414,-500.0,0.00013972,2]
[335756351,1724478656423,-711.82,0.00013972,2]
[335756352,1724478656434,-565.68,0.00013972,2]
[335756353,1724478656445,-12051.70272371,0.00013972,2]
[335756362,1724478657589,-507.97,0.00013698,2]
[335756363,1724478657600,-500.0,0.00013698,2]
[335756364,1724478657610,-507.97,0.00013698,2]
[335756365,1724478657621,-507.97,0.00013698,2]
[335756366,1724478657631,-258.8,0.00013698,2]
[335756367,1724478657642,-500.0,0.00013698,2]
[335756369,1724478657652,-507.97,0.00013698,2]
[335756370,1724478657662,-500.0,0.00013698,2]
[335756371,1724478657671,-507.97,0.00013698,2]
[335756373,1724478657681,-500.0,0.00013698,2]
[335756374,1724478657690,-500.0,0.00013698,2]
[335756375,1724478657699,-507.97,0.00013698,2]
[335756376,1724478657708,-507.97,0.00013698,2]
[335756377,1724478657718,-507.97,0.00013698,2]
[335756378,1724478657727,-1685.93207741,0.00013698,2]
[335756379,1724478657736,-507.97,0.00013698,2]
[335756380,1724478657747,-500.0,0.00013698,2]
[335756381,1724478657756,-1685.93207741,0.00013698,2]
[335756382,1724478657766,-258.0,0.00013698,2]
[335756383,1724478657776,-1685.93207741,0.00013698,2]
[335756384,1724478657785,-507.97,0.00013698,2]
[335756385,1724478657794,-1685.93207741,0.00013698,2]
[335756386,1724478657805,-1631.34727629,0.00013972,2]
[335756387,1724478657815,-500.0,0.00013972,2]
[335756388,1724478657824,-490.135518,0.00013972,2]
[335756389,1724478657834,-500.0,0.00013972,2]
[335756390,1724478657844,-974.87,0.00013972,2]
[335756391,1724478657853,-866.47234679,0.00013972,2]
[335756392,1724478657866,-224.43765321,0.00013972,2]
[335756393,1724478657879,-490.135518,0.00013972,2]
[335756394,1724478657890,-500.0,0.00013972,2]
[335756395,1724478657900,-849.58,0.00013972,2]
[335756396,1724478657909,-500.0,0.00013972,2]
[335756397,1724478657919,-500.0,0.00013972,2]
[335756398,1724478657928,-151.0,0.00013972,2]
[335756399,1724478657939,-587.91,0.00013972,2]
[335756401,1724478657949,-500.0,0.00013972,2]
[335756402,1724478657961,-500.0,0.00013972,2]
[335756403,1724478657971,-500.0,0.00013972,2]
[335756404,1724478657981,-200.32057347,0.00013973,2]
[335756405,1724478657991,-500.0,0.00013973,2]
[335756406,1724478658001,-500.30061195,0.00013973,2]
[335756407,1724478658011,-500.0,0.00013973,2]
[335756408,1724478658021,-504.78112766,0.00013973,2]
[335756409,1724478658031,-407.55911376,0.00013999,2]
[335756410,1724478658040,-6350.82185638,0.00013999,2]
[335756413,1724478658466,-1685.93207741,0.00013698,2]
[335756414,1724478658475,-507.97,0.00013698,2]
[335756415,1724478658485,-507.97,0.00013698,2]
[335756416,1724478658494,-46.12792259,0.00013698,2]
[335756417,1724478658507,-1639.80415482,0.00013698,2]
[335756418,1724478658517,-500.0,0.00013698,2]
[335756419,1724478658526,-500.0,0.00013698,2]
[335756420,1724478658535,-314.33,0.00013972,2]
[335756421,1724478658545,-508.51,0.00013972,2]
[335756422,1724478658554,-2617.48298573,0.00013999,2]
[335757400,1724479613501,576.64,0.00025,60]
[335757401,1724479650370,-649.12606555,0.00012551,2]
[335757402,1724479655779,396.74,0.00025,60]
[335757403,1724479657595,-4686.89295683,0.00012551,2]
[335757539,1724479837884,-817.95411776,0.00012782,2]
[335757540,1724479837894,-176.35794199,0.00012999,3]
[335757542,1724479837915,-286.25357028,0.00013497,2]
[335757544,1724479837924,-1001.44786617,0.00013598,2]
[335757546,1724479837934,-953.28050064,0.00013598,2]
[335757548,1724479837944,-2443.84952321,0.00013598,2]
[335757550,1724479837953,-468.8167749,0.00013599,2]
[335757552,1724479837962,-234.59474518,0.00013688,2]
[335757553,1724479837971,-343.20955709,0.00013697,2]
[335757555,1724479837981,-300.0,0.00013697,2]
[335757557,1724479837991,-515.74803289,0.00013698,2]
[335757560,1724479838001,-500.68041564,0.00013698,2]
[335757563,1724479838011,-500.0,0.00013698,2]
[335757566,1724479838020,-500.0,0.00013698,2]
[335757568,1724479838029,-500.0,0.00013698,2]
[335757570,1724479838039,-500.0,0.00013698,2]
[335757571,1724479838048,-813.15,0.00013698,2]
[335757573,1724479838058,-500.0,0.00013698,2]
[335757575,1724479838067,-502.68932578,0.00013698,2]
[335757577,1724479838076,-500.0,0.00013698,2]
[335757579,1724479838085,-500.0,0.00013698,2]
[335757581,1724479838095,-442.44977797,0.00013698,2]
[335757583,1724479838104,-207.27455495,0.00013698,2]
[335757584,1724479838113,-500.0,0.00013698,2]
[335757586,1724479838123,-535.73559158,0.00013698,2]
[335757588,1724479838132,-500.0,0.00013698,2]
[335757590,1724479838142,-268.01610404,0.00013698,2]
[335757592,1724479838164,-500.0,0.00013698,2]
[335757594,1724479838173,-500.0,0.00013698,2]
[335757596,1724479838184,-500.0,0.00013698,2]
[335757598,1724479838196,-356.85434434,0.00013698,2]
[335757600,1724479838206,-500.0,0.00013698,2]
[335757602,1724479838216,-500.0,0.00013698,2]
[335757604,1724479838225,-500.0,0.00013698,2]
[335757606,1724479838236,-500.0,0.00013698,2]
[335757608,1724479838248,-500.0,0.00013698,2]
[335757610,1724479838258,-159.18589644,0.00013698,2]
[335757612,1724479838270,-500.0,0.00013698,2]
[335757614,1724479838280,-500.0,0.00013698,2]
[335757616,1724479838291,-500.0,0.00013698,2]
[335757618,1724479838302,-500.0,0.00013698,2]
[335757620,1724479838314,-500.0,0.00013698,2]
[335757622,1724479838324,-500.0,0.00013698,2]
[335757624,1724479838335,-567.45,0.00013698,2]
[335757626,1724479838346,-766.84350536,0.00013698,2]
[335757628,1724479838357,-766.84350536,0.00013698,2]
[335757630,1724479838367,-766.84350536,0.00013698,2]
[335757632,1724479838376,-766.84350536,0.00013698,2]
[335757634,1724479838386,-766.84350536,0.00013698,2]
[335757636,1724479838398,-766.84350536,0.00013698,2]
[335757638,1724479838408,-766.84350536,0.00013698,2]
[335757639,1724479838417,-766.84350536,0.00013698,2]
[335757641,1724479838427,-766.84350536,0.00013698,2]
[335757643,1724479838436,-766.84350536,0.00013698,2]
[335757645,1724479838446,-766.84350536,0.00013698,2]
[335757647,1724479838455,-766.84350536,0.00013698,2]
[335757649,1724479838466,-766.84350536,0.00013698,2]
[335757651,1724479838475,-766.84350536,0.00013698,2]
[335757653,1724479838485,-500.0,0.00013698,2]
[335757654,1724479838497,-500.0,0.00013698,2]
[335757656,1724479838506,-500.0,0.00013698,2]
[335757658,1724479838515,-500.0,0.00013698,2]
[335757660,1724479838524,-831.04435699,0.00013698,2]
[335757662,1724479838534,-831.04435699,0.00013698,2]
[335757664,1724479838544,-831.04435699,0.00013698,2]
[335757666,1724479838554,-679.55,0.00013698,2]
[335757667,1724479838564,-500.0,0.00013698,2]
[335757669,1724479838573,-540.88,0.00013698,2]
[335757671,1724479838583,-1394.76,0.00013698,2]
[335757673,1724479838592,-500.0,0.00013698,2]
[335757675,1724479838602,-500.0,0.00013698,2]
[335757677,1724479838613,-503.69866884,0.00013698,2]
[335757679,1724479838622,-411.68077222,0.00013698,2]
[335757680,1724479838632,-811.22,0.00013698,2]
[335757682,1724479838641,-500.0,0.00013698,2]
[335757684,1724479838651,-500.87301071,0.00013698,2]
[335757695,1724479838859,-500.0,0.00013698,2]
[335757696,1724479838870,-572.82,0.00013698,2]
[335757697,1724479838882,-500.0,0.00013698,2]
[335757698,1724479838893,-500.0,0.00013698,2]
[335757699,1724479838902,-500.0,0.00013698,2]
[335757700,1724479838913,-1183.75,0.00013698,2]
[335757701,1724479838923,-500.0,0.00013698,2]
[335757702,1724479838935,-500.0,0.00013698,2]
[335757704,1724479838944,-577.02,0.00013698,2]
[335757706,1724479838955,-502.86105163,0.00013698,2]
[335757708,1724479838966,-501.58336688,0.00013698,2]
[335757710,1724479838976,-500.0,0.00013698,2]
[335757712,1724479838987,-790.57,0.00013698,2]
[335757714,1724479838996,-500.0,0.00013698,2]
[335757716,1724479839008,-500.0,0.00013698,2]
[335757718,1724479839018,-500.0,0.00013698,2]
[335757721,1724479839029,-789.32,0.00013698,2]
[335757723,1724479839040,-317.59539575,0.00013698,2]
[335757725,1724479839052,-500.0,0.00013698,2]
[335757727,1724479839064,-500.0,0.00013698,2]
[335757730,1724479839075,-500.0,0.00013698,2]
[335757732,1724479839087,-500.0,0.00013698,2]
[335757734,1724479839097,-697.09,0.00013698,2]
[335757736,1724479839107,-500.0,0.00013698,2]
[335757738,1724479839116,-605.47,0.00013698,2]
[335757741,1724479839127,-433.15344614,0.00013698,2]
[335757743,1724479839139,-500.18172759,0.00013698,2]
[335757745,1724479839152,-500.0,0.00013698,2]
[335757747,1724479839162,-500.0,0.00013698,2]
[335757749,1724479839172,-500.0,0.00013698,2]
[335757752,1724479839183,-500.0,0.00013698,2]
[335757754,1724479839194,-531.77767104,0.00013698,2]
[335757756,1724479839203,-500.0,0.00013698,2]
[335757758,1724479839213,-500.0,0.00013698,2]
[335757760,1724479839222,-500.0,0.00013698,2]
[335757762,1724479839231,-643.50200613,0.00013698,2]
[335757764,1724479839243,-500.0,0.00013698,2]
[335757766,1724479839255,-500.0,0.00013698,2]
[335757768,1724479839265,-500.0,0.00013698,2]
[335757770,1724479839274,-772.47,0.00013698,2]
[335757772,1724479839284,-500.0,0.00013698,2]
[335757774,1724479839293,-500.0,0.00013698,2]
[335757776,1724479839303,-500.0,0.00013698,2]
[335757779,1724479839312,-503.11997067,0.00013698,2]
[335757781,1724479839321,-617.09,0.00013698,2]
[335757782,1724479839331,-866.45,0.00013698,2]
[335757785,1724479839340,-500.0,0.00013698,2]
[335757787,1724479839350,-500.0,0.00013698,2]
[335757789,1724479839359,-500.0,0.00013698,2]
[335757791,1724479839368,-500.0,0.00013698,2]
[335757793,1724479839379,-500.0,0.00013698,2]
[335757794,1724479839388,-1520.92,0.00013698,2]
[335757797,1724479839401,-518.14,0.00013698,2]
[335757799,1724479839413,-500.0,0.00013698,2]
[335757801,1724479839422,-500.0,0.00013698,2]
[335757803,1724479839431,-500.0,0.00013698,2]
[335757805,1724479839440,-500.0,0.00013698,2]
[335757807,1724479839449,-500.0,0.00013698,2]
[335757809,1724479839458,-500.0,0.00013698,2]
[335757811,1724479839467,-500.0,0.00013698,2]
[335757813,1724479839477,-2341.35,0.00013698,2]
[335757816,1724479839487,-519.21642088,0.00013698,2]
[335757818,1724479839498,-500.0,0.00013698,2]
[335757821,1724479839508,-766.62,0.00013698,2]
[335757824,1724479839517,-1328.89,0.00013698,2]
[335757827,1724479839526,-500.0,0.00013698,2]
[335757830,1724479839535,-500.0,0.00013698,2]
[335757833,1724479839545,-500.0,0.00013698,2]
[335757836,1724479839554,-500.0,0.00013698,2]
[335757839,1724479839565,-2032.72,0.00013698,2]
[335757842,1724479839575,-500.0,0.00013698,2]
[335757845,1724479839583,-500.0,0.00013698,2]
[335757849,1724479839593,-743.35,0.00013698,2]
[335757852,1724479839602,-500.0,0.00013698,2]
[335757855,1724479839612,-766.22,0.00013698,2]
[335757858,1724479839622,-500.0,0.00013698,2]
[335757861,1724479839631,-500.0,0.00013698,2]
[335757864,1724479839640,-500.0,0.00013698,2]
[335757867,1724479839649,-500.0,0.00013698,2]
[335757870,1724479839659,-500.0,0.00013698,2]
[335757873,1724479839669,-500.0,0.00013698,2]
[335757875,1724479839678,-944.03,0.00013698,2]
[335757877,1724479839688,-599.98714986,0.00013698,2]
[335757879,1724479839697,-500.0,0.00013698,2]
[335757880,1724479839707,-500.0,0.00013698,2]
[335757882,1724479839716,-500.0,0.00013698,2]
[335757884,1724479839725,-500.0,0.00013698,2]
[335757886,1724479839734,-500.0,0.00013698,2]
[335757888,1724479839743,-500.0,0.00013698,2]
[335757890,1724479839753,-500.0,0.00013698,2]
[335757893,1724479839762,-500.0,0.00013698,2]
[335757895,1724479839771,-500.0,0.00013698,2]
[335757896,1724479839780,-193.80537047,0.00013698,2]
[335757898,1724479839789,-2363.95,0.00013698,2]
[335757900,1724479839799,-500.0,0.00013698,2]
[335757902,1724479839807,-500.0,0.00013698,2]
[335757904,1724479839817,-500.0,0.00013698,2]
[335757906,1724479839826,-500.0,0.00013698,2]
[335757908,1724479839835,-534.63057297,0.00013698,2]
[335757910,1724479839845,-500.0,0.00013698,2]
[335757913,1724479839854,-500.71268256,0.00013698,2]
[335757915,1724479839863,-500.0,0.00013698,2]
[335757917,1724479839873,-772.08,0.00013698,2]
[335757919,1724479839882,-500.0,0.00013698,2]
[335757921,1724479839892,-607.28,0.00013698,2]
[335757923,1724479839904,-500.0,0.00013698,2]
[335757925,1724479839915,-500.0,0.00013698,2]
[335757927,1724479839926,-2349.32,0.00013698,2]
[335757929,1724479839936,-500.0,0.00013698,2]
[335757931,1724479839947,-500.0,0.00013698,2]
[335757934,1724479839958,-500.0,0.00013698,2]
[335757936,1724479839968,-900.28,0.00013698,2]
[335757938,1724479839977,-669.47,0.00013698,2]
[335757940,1724479839987,-878.8,0.00013698,2]
[335757942,1724479839996,-500.0,0.00013698,2]
[335757944,1724479840005,-500.0,0.00013698,2]
[335757946,1724479840017,-2016.11,0.00013698,2]
[335757948,1724479840029,-500.0,0.00013698,2]
[335757950,1724479840039,-500.0,0.00013698,2]
[335757952,1724479840049,-500.0,0.00013698,2]
[335757955,1724479840060,-500.0,0.00013698,2]
[335757957,1724479840070,-500.0,0.00013698,2]
[335757959,1724479840081,-500.0,0.00013698,2]
[335757961,1724479840091,-515.1272377,0.00013698,2]
[335757963,1724479840102,-3439.97,0.00013698,2]
[335757965,1724479840112,-500.0,0.00013698,2]
[335757967,1724479840121,-500.0,0.00013698,2]
[335757969,1724479840131,-500.0,0.00013698,2]
[335757971,1724479840140,-500.0,0.00013698,2]
[335757973,1724479840150,-500.0,0.00013698,2]
[335757975,1724479840159,-500.0,0.00013698,2]
[335757977,1724479840169,-500.0,0.00013698,2]
[335757979,1724479840179,-500.0,0.00013698,2]
[335757982,1724479840191,-500.0,0.00013698,2]
[335757984,1724479840202,-500.0,0.00013698,2]
[335757986,1724479840211,-500.0,0.00013698,2]
[335757988,1724479840222,-500.0,0.00013698,2]
[335757990,1724479840233,-500.0,0.00013698,2]
[335757992,1724479840243,-500.0,0.00013698,2]